bitfinex-derivatives/quotes_BNBF0:USTF0_20251027
["timestamp","ask_amount","ask_price","bid_price","bid_amount"]
[1761534580870,0.15057472,1157.0,1153.6,0.5632666]
[1761534581069,0.15057472,1157.0,1153.3,0.15070317]
[1761534581269,0.15057472,1157.0,1153.4,1.69621199]
[1761534581565,2.29541402,1157.0,1153.5,0.56321199]
[1761534581865,2.29541402,1157.0,1153.6,0.56321199]
[1761534582067,2.1448393,1156.7,1153.4,1.133]
[1761534582265,2.1448393,1156.7,1153.5,0.56321077]
[1761534582566,2.1448393,1156.4,1153.6,0.56321077]
[1761534582867,2.1448393,1156.4,1153.7,0.56321077]
[1761534583166,2.1448393,1156.4,1153.4,1.133]
[1761534583367,2.1448393,1156.4,1153.5,0.56328718]
[1761534583567,2.1448393,1156.4,1153.6,0.56328718]
[1761534583766,2.1448393,1156.4,1153.7,0.56328718]
[1761534583966,2.1448393,1156.4,1153.4,1.133]
[1761534584166,2.1448393,1156.4,1153.5,0.5632875]
[1761534584367,2.1448393,1156.4,1153.6,0.5632875]
[1761534584570,2.1448393,1156.4,1153.7,0.5632875]
[1761534584770,2.1448393,1156.4,1153.4,1.133]
[1761534584970,2.1448393,1156.4,1153.5,0.56336336]
[1761534585265,2.1448393,1156.3,1153.6,0.56336336]
[1761534585470,2.1448393,1156.3,1153.7,0.56336336]
[1761534585670,2.1448393,1156.4,1153.4,1.133]
[1761534585871,2.1448393,1156.4,1153.5,0.56344394]
[1761534586074,2.1448393,1156.4,1153.6,0.56344394]
[1761534586267,2.1448393,1156.7,1153.7,0.56344394]
[1761534586467,2.1448393,1156.7,1153.4,1.133]
[1761534586667,2.1448393,1156.7,1153.5,1.20699872]
[1761534586871,0.15057472,1157.0,1153.6,0.56346538]
[1761534586872,2.29541402,1157.0,1153.6,0.56346538]
[1761534587071,2.29541402,1157.0,1153.7,0.56346538]
[1761534587269,2.29541402,1157.0,1153.8,0.56346538]
[1761534587571,2.29541402,1157.0,1153.9,0.56346538]
[1761534587769,2.29541402,1157.0,1154.0,0.56346538]
[1761534587969,2.29541402,1157.0,1153.5,0.64353334]
[1761534588172,2.29541402,1157.0,1153.6,0.56403039]
[1761534588374,2.29541402,1157.0,1153.7,0.56403039]
[1761534588575,2.29541402,1157.0,1153.8,0.56403039]
[1761534588776,2.29541402,1157.0,1153.9,0.56403039]
[1761534588975,2.29541402,1157.0,1154.0,0.56403039]
[1761534589270,2.29541402,1157.0,1153.5,0.64353334]
[1761534589474,2.29541402,1157.0,1153.6,0.56404644]
[1761534589772,2.29541402,1157.0,1153.7,0.56404644]
[1761534589970,2.29541402,1157.0,1153.8,0.56404644]
[1761534590271,2.29541402,1157.0,1153.9,0.56404644]
[1761534590574,2.29541402,1157.0,1154.0,0.56404644]
[1761534590767,2.29541402,1157.0,1153.5,0.64353334]
[1761534590971,0.15057472,1157.0,1153.6,0.56406845]
[1761534591174,0.15057472,1157.0,1153.7,0.56406845]
[1761534591368,0.15057472,1157.0,1153.8,0.56406845]
[1761534591574,0.15057472,1157.0,1153.9,0.56406845]
[1761534591772,0.15057472,1157.0,1154.0,0.56406845]
[1761534591973,0.15057472,1157.0,1153.5,0.64353334]
[1761534592172,0.15057472,1157.0,1153.6,0.56409152]
[1761534592373,0.15057472,1157.0,1153.7,0.56409152]
[1761534592579,0.15057472,1157.0,1153.8,0.56409152]
[1761534592876,0.15057472,1157.0,1153.9,0.56409152]
[1761534593072,0.15057472,1157.0,1154.0,0.56409152]
[1761534593271,0.15057472,1157.0,1153.5,0.64353334]
[1761534593474,0.15057472,1157.0,1153.6,0.56417782]
[1761534593776,0.15057472,1157.0,1153.7,0.56417782]
[1761534593977,0.15057472,1157.0,1153.8,0.56417782]
[1761534594176,0.15057472,1157.0,1153.9,0.56417782]
[1761534594375,0.15057472,1157.0,1154.0,0.56417782]
[1761534594577,0.15057472,1157.0,1153.5,0.64353334]
[1761534594776,0.15057472,1157.0,1153.6,0.56424728]
[1761534594975,0.15057472,1157.0,1153.7,0.56424728]
[1761534595179,0.15057472,1157.0,1153.8,0.56424728]
[1761534595480,0.15057472,1157.0,1153.9,0.56424728]
[1761534595681,0.15057472,1157.0,1154.0,0.56424728]
[1761534595982,0.15057472,1157.0,1153.5,0.64353334]
[1761534596181,2.29541402,1157.0,1153.6,0.5643751]
[1761534596378,2.29541402,1157.0,1153.7,0.5643751]
[1761534596577,0.15057472,1157.0,1153.8,0.5643751]
[1761534596880,0.15057472,1157.0,1153.9,0.5643751]
[1761534597078,0.15057472,1157.0,1153.4,1.77653334]
[1761534597282,0.15057472,1157.0,1153.5,0.5645165]
[1761534597481,0.15057472,1157.0,1153.6,0.56463572]
[1761534597680,0.15057472,1157.0,1153.7,0.56463572]
[1761534597976,0.15057472,1157.0,1153.8,0.56463572]
[1761534598181,0.15057472,1157.0,1153.9,0.56463572]
[1761534598382,0.15057472,1157.0,1153.4,0.64388106]
[1761534598582,0.15057472,1157.0,1153.5,0.56477473]
[1761534598782,0.15057472,1157.0,1153.6,0.56477473]
[1761534598984,0.15057472,1157.0,1153.7,0.56477473]
[1761534599180,0.15057472,1157.0,1153.8,0.56477473]
[1761534599385,2.29541402,1157.0,1153.9,0.56477473]
[1761534599586,2.29541402,1157.0,1153.3,0.79458423]
[1761534599880,0.15057472,1157.0,1153.4,0.56493143]
[1761534600085,0.15057472,1157.0,1153.5,0.56493143]
[1761534600281,0.15057472,1157.0,1153.6,0.56493143]
[1761534600582,0.15057472,1157.0,1153.7,0.56493143]
[1761534600782,0.15057472,1157.0,1153.8,0.56493143]
[1761534600981,0.15057472,1157.0,1153.9,1.371]
[1761534601381,2.29541402,1157.0,1153.9,1.371]
[1761534603990,2.1448393,1156.6,1153.9,1.371]
[1761534604186,0.15057472,1157.0,1154.0,0.56533648]
[1761534604390,0.15057472,1157.0,1154.1,0.56533648]
[1761534604591,0.15057472,1157.0,1154.2,0.56549653]
[1761534604886,0.15057472,1157.0,1153.9,1.371]
[1761534605090,0.15057472,1157.0,1154.0,0.56549653]
[1761534605291,0.15057472,1157.0,1154.1,0.56549653]
[1761534605488,0.15057472,1157.0,1154.2,0.56549653]
[1761534605688,0.15057472,1157.0,1154.3,0.56549653]
[1761534605889,0.15057472,1157.0,1153.9,1.371]
[1761534606090,0.15057472,1157.0,1154.0,0.56564641]
[1761534606292,0.15057472,1157.0,1154.1,0.56564641]
[1761534606490,0.15057472,1157.0,1154.2,0.56564641]
[1761534606690,0.15057472,1157.0,1154.3,0.56564641]
[1761534606893,0.15057472,1157.0,1153.9,1.371]
[1761534607091,0.15057472,1157.0,1154.0,0.56586147]
[1761534607297,0.15057472,1157.0,1154.1,0.56586147]
[1761534607494,0.15057472,1157.0,1154.2,0.56586147]
[1761534607692,0.15057472,1157.0,1154.3,0.56586147]
[1761534607896,0.15057472,1157.0,1153.9,1.371]
[1761534608095,0.15057472,1157.0,1154.0,0.56606978]
[1761534608391,0.15057472,1157.0,1154.1,0.56606978]
[1761534608697,0.15057472,1157.0,1154.2,0.56606978]
[1761534608895,0.15057472,1157.0,1153.9,2.01488106]
[1761534608896,0.15057472,1157.0,1154.3,0.56606978]
[1761534609196,0.15057472,1157.0,1154.4,0.56606978]
[1761534609392,0.15057472,1157.0,1153.9,2.01488106]
[1761534609593,0.15057472,1157.0,1154.0,0.56653272]
[1761534609795,0.15057472,1157.0,1154.1,0.56653272]
[1761534609995,0.15057472,1157.0,1154.2,0.56653272]
[1761534610198,0.15057472,1157.0,1154.3,0.56653272]
[1761534610498,0.15057472,1157.0,1154.4,0.56653272]
[1761534610693,0.15057472,1157.0,1153.9,2.01488106]
[1761534610895,0.15057472,1157.0,1154.0,0.56676629]
[1761534611094,0.15057472,1157.0,1154.1,0.56676629]
[1761534611296,0.15057472,1157.0,1154.2,0.56676629]
[1761534611499,0.15057472,1157.0,1154.3,0.56676629]
[1761534611700,0.15057472,1157.0,1154.4,0.56676629]
[1761534611899,0.15057472,1157.0,1154.5,0.56676629]
[1761534612196,0.15057472,1157.0,1153.9,2.01488106]
[1761534612396,0.15057472,1157.0,1154.0,0.56724924]
[1761534612596,0.15057472,1157.0,1154.1,0.56724924]
[1761534612795,0.15057472,1157.0,1154.2,0.56724924]
[1761534612999,0.15057472,1157.0,1154.3,0.56724924]
[1761534613294,0.15057472,1157.0,1154.4,0.56724924]
[1761534613496,0.15057472,1157.0,1154.5,0.56724924]
[1761534613695,0.15057472,1157.0,1153.9,2.01488106]
[1761534613899,0.15057472,1157.0,1154.0,1.21109417]
[1761534614096,2.29541402,1157.0,1154.1,1.21109417]
[1761534614408,2.29541402,1157.0,1154.2,0.56721311]
[1761534614599,2.1448393,1156.8,1154.3,0.56721311]
[1761534614796,2.1448393,1156.8,1154.4,0.56721311]
[1761534614996,2.1448393,1156.8,1154.5,0.56721311]
[1761534615195,2.1448393,1156.8,1154.6,0.56721311]
[1761534615399,2.1448393,1156.8,1154.2,0.64388106]
[1761534615598,2.1448393,1156.9,1154.3,0.56686999]
[1761534615801,2.1448393,1156.9,1154.2,0.64388106]
[1761534615802,2.1448393,1156.9,1154.4,0.56686999]
[1761534616097,2.1448393,1156.9,1154.5,0.56686999]
[1761534616302,2.1448393,1156.9,1154.6,0.56686999]
[1761534616496,2.29541402,1157.0,1154.2,0.64388106]
[1761534616699,2.29541402,1157.0,1154.3,0.56672375]
[1761534616899,2.29541402,1157.0,1154.4,0.56672375]
[1761534617202,2.29541402,1157.0,1154.5,0.56672375]
[1761534617400,2.29541402,1157.0,1154.6,0.56672375]
[1761534617599,2.29541402,1157.0,1154.2,0.64388106]
[1761534617902,2.29541402,1157.0,1154.3,0.56614927]
[1761534618203,0.15057472,1157.0,1154.4,0.56614927]
[1761534618402,0.15057472,1157.0,1154.5,0.56614927]
[1761534618603,0.15057472,1157.0,1154.6,0.56614927]
[1761534618898,0.15057472,1157.0,1154.1,0.64388106]
[1761534619202,0.15057472,1157.0,1154.2,0.56601862]
[1761534619402,0.15057472,1157.0,1154.3,0.56601862]
[1761534619698,2.1448393,1156.5,1154.0,0.64388106]
[1761534619902,2.1448393,1156.5,1154.1,0.56597078]
[1761534620102,2.1448393,1156.5,1153.9,1.371]
[1761534620103,2.1448393,1156.5,1154.2,0.56597078]
[1761534620301,0.15057472,1157.0,1153.9,1.371]
[1761534620505,0.15057472,1157.0,1154.0,0.56606043]
[1761534620800,0.15057472,1157.0,1154.1,0.56606043]
[1761534621004,0.15057472,1157.0,1154.2,0.56606043]
[1761534621201,0.15057472,1157.0,1153.9,1.371]
[1761534621403,0.15057472,1157.0,1154.0,0.56606048]
[1761534621705,0.15057472,1157.0,1154.1,0.56606048]
[1761534621905,0.15057472,1157.0,1154.2,0.56606048]
[1761534622106,0.15057472,1157.0,1153.9,1.371]
[1761534622307,0.15057472,1157.0,1154.0,0.56606016]
[1761534622613,0.15057472,1157.0,1154.1,0.56606016]
[1761534622908,0.15057472,1157.0,1154.2,0.56606016]
[1761534623211,0.15057472,1157.0,1153.9,1.371]
[1761534623411,2.1448393,1156.2,1154.0,0.56609546]
[1761534623610,2.1448393,1156.2,1153.9,1.371]
[1761534623807,2.1448393,1156.2,1154.0,0.56609557]
[1761534624009,2.1448393,1156.2,1153.9,1.371]
[1761534624209,2.1448393,1156.2,1154.0,0.56609557]
[1761534624406,2.1448393,1156.2,1153.9,1.371]
[1761534624708,2.1448393,1156.2,1154.0,0.56609574]
[1761534624907,2.1448393,1156.2,1153.9,1.371]
[1761534625111,2.1448393,1156.2,1154.0,0.56609585]
[1761534625309,2.1448393,1156.2,1153.9,1.371]
[1761534625513,2.1448393,1156.2,1154.0,0.56609807]
[1761534625809,2.1448393,1156.2,1153.9,1.371]
[1761534626008,2.1448393,1156.2,1154.0,0.56609357]
[1761534626212,2.1448393,1156.2,1153.9,1.371]
[1761534626409,2.1448393,1156.3,1154.0,0.56606853]
[1761534626611,2.1448393,1156.3,1153.9,1.371]
[1761534626815,2.1448393,1156.3,1154.0,0.56606853]
[1761534627111,2.1448393,1156.2,1153.9,1.371]
[1761534627314,2.1448393,1156.2,1154.0,0.56606445]
[1761534627610,2.1448393,1156.2,1153.9,1.371]
[1761534627810,2.1448393,1156.2,1154.0,0.56605249]
[1761534628109,2.1448393,1156.2,1154.1,0.56605249]
[1761534628314,2.1448393,1156.2,1153.9,1.371]
[1761534628611,2.1448393,1156.2,1154.0,0.56604915]
[1761534628912,2.1448393,1156.2,1154.1,0.56604915]
[1761534629112,2.1448393,1156.2,1153.9,1.371]
[1761534629312,2.1448393,1156.2,1154.0,0.56602024]
[1761534629610,2.1448393,1156.2,1154.1,0.56602024]
[1761534629816,2.1448393,1156.2,1153.9,1.371]
[1761534630014,2.1448393,1156.3,1154.0,0.56602715]
[1761534630214,2.1448393,1156.3,1154.1,0.56602715]
[1761534630415,2.1448393,1156.3,1153.8,0.64388106]
[1761534630712,2.1448393,1156.4,1153.9,1.20989581]
[1761534630910,2.1448393,1156.4,1154.0,0.56601475]
[1761534631109,2.1448393,1156.4,1154.1,0.56601475]
[1761534631410,2.1448393,1156.4,1154.2,0.56601475]
[1761534631614,2.1448393,1156.4,1154.3,0.56601475]
[1761534631811,2.1448393,1156.4,1153.9,0.64388106]
[1761534632015,2.1448393,1156.4,1154.0,0.56591902]
[1761534632215,2.1448393,1156.4,1154.1,1.62691902]
[1761534632415,2.1448393,1156.4,1154.2,0.56591902]
[1761534632711,2.1448393,1156.4,1154.3,0.56591902]
[1761534632914,2.1448393,1156.4,1154.1,1.061]
[1761534633116,2.1448393,1156.4,1154.2,0.56589941]
[1761534633316,2.1448393,1156.5,1154.3,0.56589941]
[1761534633515,2.1448393,1156.5,1154.1,1.061]
[1761534633713,3.002775,1156.9,1154.2,0.56586111]
[1761534633914,3.002775,1156.9,1154.3,0.56586111]
[1761534634115,3.002775,1156.9,1154.1,1.061]
[1761534634314,3.002775,1156.9,1154.2,0.56590194]
[1761534634516,3.002775,1156.9,1154.3,0.56590194]
[1761534634716,0.15057472,1157.0,1154.1,1.061]
[1761534634916,0.15057472,1157.0,1154.2,0.56590632]
[1761534635116,0.15057472,1157.0,1154.3,0.56590632]
[1761534635316,2.1448393,1157.7,1154.1,1.061]
[1761534635513,0.15066142,1156.4,1154.2,0.56592796]
[1761534635813,2.1448393,1157.7,1154.3,0.56592796]
[1761534636014,0.15066142,1155.9,1154.1,1.061]
[1761534636214,0.15066142,1155.9,1154.2,0.56593567]
[1761534636414,2.1448393,1157.6,1154.3,0.56593567]
[1761534636617,0.1506699,1155.5,1154.4,0.56596779]
[1761534636811,2.1448393,1157.6,1154.1,1.061]
[1761534637016,2.1448393,1157.7,1154.2,0.56596779]
[1761534637212,0.15066468,1155.3,1154.1,1.061]
[1761534637414,2.1448393,1157.1,1154.2,0.56613284]
[1761534637714,0.15067838,1155.1,1154.1,1.061]
[1761534637913,2.1448393,1157.1,1154.2,0.56613284]
[1761534638114,2.1448393,1157.1,1154.1,1.061]
[1761534638318,0.15069795,1155.0,1154.2,0.56620238]
[1761534638618,2.1448393,1157.0,1154.1,1.061]
[1761534638912,0.15069469,1155.0,1154.2,0.56623061]
[1761534639113,2.1448393,1157.0,1154.1,1.061]
[1761534639315,2.1448393,1157.0,1154.2,0.56633486]
[1761534639519,0.15069795,1155.0,1154.1,1.061]
[1761534639813,2.1448393,1157.0,1154.2,0.56634001]
[1761534640014,0.15070122,1155.0,1154.1,1.061]
[1761534640218,2.1448393,1157.0,1154.2,0.56634001]
[1761534640513,2.1448393,1157.0,1154.1,1.061]
[1761534640718,0.15069795,1156.4,1154.2,0.56643197]
[1761534641018,0.15069795,1156.4,1154.1,1.061]
[1761534641213,0.15069795,1156.4,1154.2,0.56643197]
[1761534641512,0.15069795,1156.4,1154.1,1.061]
[1761534641715,0.15069795,1156.4,1154.2,0.5664647]
[1761534641914,0.15069795,1156.4,1154.1,1.061]
[1761534642117,0.15069795,1156.4,1154.2,0.56646449]
[1761534642318,0.15069795,1156.4,1154.1,1.061]
[1761534642518,0.15069795,1156.4,1154.2,0.56642433]
[1761534642717,0.15069795,1156.4,1154.3,0.56642433]
[1761534642918,0.15069795,1156.4,1154.4,0.56642433]
[1761534643114,0.15069795,1156.4,1154.5,0.56642433]
[1761534643416,0.15069795,1156.4,1154.6,0.56642433]
[1761534643615,0.15069795,1156.4,1154.7,0.56642433]
[1761534643813,0.15069795,1156.4,1154.1,1.061]
[1761534644118,0.15069795,1156.4,1154.2,0.56627276]
[1761534644414,0.15069795,1156.4,1154.3,0.56627276]
[1761534644618,0.15069795,1156.4,1154.4,0.56627276]
[1761534644819,0.15069795,1156.4,1154.5,0.56627276]
[1761534645019,0.15069795,1156.4,1154.6,0.56627276]
[1761534645221,0.15069795,1156.4,1154.1,1.061]
[1761534645420,0.15069795,1156.4,1154.2,0.56617215]
[1761534645617,0.15069795,1156.4,1154.3,0.56617215]
[1761534645820,0.15069795,1156.4,1154.4,0.56617215]
[1761534646118,0.15069795,1156.4,1154.5,0.56617215]
[1761534646317,0.15069795,1156.4,1154.6,0.56617215]
[1761534646516,0.15069795,1156.4,1154.1,1.061]
[1761534646717,0.15069795,1156.4,1154.2,1.21003205]
[1761534646918,0.15069795,1156.4,1154.3,0.56615099]
[1761534647120,0.15069795,1156.4,1154.4,0.56615099]
[1761534647320,0.15069795,1156.4,1154.5,0.56615099]
[1761534647517,0.15069795,1156.4,1154.6,0.56615099]
[1761534647716,0.15069795,1156.4,1154.7,0.56615099]
[1761534647921,0.15069795,1156.4,1154.1,1.70488106]
[1761534648117,0.15069795,1156.4,1154.2,0.56607916]
[1761534648317,0.15069795,1156.4,1154.3,0.56607916]
[1761534648619,0.15069795,1156.4,1154.4,0.56607916]
[1761534648817,0.15069795,1156.4,1154.5,0.56607916]
[1761534649020,0.15069795,1156.4,1154.6,0.56607916]
[1761534649223,0.15069795,1156.4,1154.7,0.56607916]
[1761534649426,0.15069795,1156.4,1154.3,0.64388106]
[1761534649623,0.15069795,1156.4,1154.4,0.56600846]
[1761534649822,0.15069795,1156.4,1154.5,0.56600846]
[1761534650124,0.15069795,1156.4,1154.6,0.56600846]
[1761534650322,0.15069795,1156.4,1154.7,0.56600846]
[1761534650524,0.15069795,1156.4,1154.8,0.56600846]
[1761534650725,0.15069795,1156.4,1154.4,0.64388106]
[1761534651025,0.15069795,1156.4,1154.5,0.56594596]
[1761534651225,0.15069795,1156.4,1154.6,0.56594596]
[1761534651526,0.15069795,1156.4,1154.7,0.56594596]
[1761534651826,0.15069795,1156.4,1154.8,0.56594596]
[1761534652022,0.15069795,1156.4,1154.4,0.64388106]
[1761534652224,0.15069795,1156.4,1154.5,0.56590489]
[1761534652426,0.15069795,1156.4,1154.6,0.56590489]
[1761534652626,0.15069795,1156.4,1154.7,1.92390489]
[1761534652827,0.15069795,1156.4,1154.8,0.56590489]
[1761534653028,0.15069795,1156.4,1154.7,1.358]
[1761534653326,0.15069795,1156.4,1154.8,0.56587396]
[1761534653524,0.15069795,1156.4,1154.7,1.358]
[1761534654926,0.15069795,1156.4,1154.8,0.56584338]
[1761534655126,0.15069795,1156.4,1154.7,1.358]
[1761534655330,0.15069795,1156.4,1154.8,0.5658815]
[1761534655530,0.15069795,1156.4,1154.7,1.358]
[1761534655727,0.15069795,1156.4,1154.8,0.56583759]
[1761534655926,0.15069795,1156.4,1154.7,1.358]
[1761534656225,0.15069795,1156.4,1154.8,0.56583759]
[1761534656429,0.15069795,1156.4,1154.7,1.358]
[1761534657727,0.15069795,1156.4,1154.8,0.56583694]
[1761534657931,0.15069795,1156.4,1154.7,1.358]
[1761534658127,0.15069795,1156.4,1154.8,0.56583694]
[1761534658332,0.15069795,1156.4,1154.7,1.358]
[1761534658532,0.15069795,1156.4,1154.8,0.5658434]
[1761534658827,0.15069795,1156.4,1154.7,1.358]
[1761534659030,0.15069795,1156.4,1154.8,0.56584308]
[1761534659232,0.15069795,1156.4,1154.7,1.358]
[1761534659429,0.15069795,1156.4,1154.8,0.56586087]
[1761534659628,0.15069795,1156.4,1154.7,1.358]
[1761534659833,0.15069795,1156.4,1154.8,0.56586087]
[1761534660031,0.15069795,1156.4,1154.7,1.358]
[1761534661336,0.15069795,1156.4,1154.8,0.56591874]
[1761534661535,0.15069795,1156.4,1154.7,1.358]
[1761534661836,0.15069795,1156.4,1154.8,0.56589713]
[1761534662035,0.15069795,1156.4,1154.7,1.358]
[1761534662236,0.15069795,1156.4,1154.8,0.56588841]
[1761534662440,0.15069795,1156.4,1154.9,0.56588841]
[1761534662635,0.15069795,1156.4,1154.7,1.358]
[1761534662838,0.15069795,1156.4,1154.8,0.56588483]
[1761534663035,0.15069795,1156.4,1154.9,0.56588483]
[1761534663239,0.15069795,1156.4,1154.7,1.358]
[1761534663437,0.15069795,1156.4,1154.8,0.56587654]
[1761534663640,0.15069795,1156.4,1154.9,0.56587654]
[1761534663840,0.15069795,1156.4,1154.7,1.358]
[1761534664043,0.15069795,1156.4,1154.8,0.5658713]
[1761534664241,0.15069795,1156.4,1154.9,0.5658713]
[1761534664441,0.15069795,1156.4,1154.7,1.358]
[1761534664641,0.15069795,1156.4,1154.8,0.5657812]
[1761534664941,0.15069795,1156.4,1154.9,0.5657812]
[1761534665142,0.15069795,1156.4,1154.7,1.358]
[1761534665442,0.15069795,1156.4,1154.8,0.56563433]
[1761534665642,0.15069795,1156.4,1154.9,0.56563433]
[1761534665839,0.15069795,1156.4,1154.7,1.358]
[1761534666038,0.15069795,1156.4,1154.8,0.56563394]
[1761534666341,0.15069795,1156.4,1154.9,0.56563394]
[1761534666641,0.15069795,1156.4,1154.7,1.358]
[1761534666842,0.15069795,1156.4,1154.8,0.56549996]
[1761534667041,0.15069795,1156.4,1154.9,0.56549996]
[1761534667236,0.15069795,1156.4,1154.7,1.358]
[1761534667440,0.15069795,1156.4,1154.8,0.56537158]
[1761534667641,0.15069795,1156.4,1154.9,0.56536868]
[1761534667841,0.15069795,1156.4,1154.7,1.358]
[1761534668040,0.15069795,1156.4,1154.8,0.56536868]
[1761534668245,0.15069795,1156.4,1154.7,1.358]
[1761534668444,0.15069795,1156.4,1154.8,0.56524736]
[1761534668646,0.15069795,1156.4,1154.9,0.56524736]
[1761534668844,0.15069795,1156.4,1154.7,1.358]
[1761534669045,0.15069795,1156.4,1154.8,0.56524736]
[1761534669346,0.15069795,1156.4,1154.9,0.56512421]
[1761534669546,0.15069795,1156.4,1155.0,0.56512421]
[1761534669744,0.15069795,1156.4,1155.1,0.56512421]
[1761534669942,0.15069795,1156.4,1154.8,0.64388106]
[1761534670142,0.15069795,1156.4,1154.9,0.56502167]
[1761534670343,0.15069795,1156.4,1155.0,0.56502167]
[1761534670542,0.15069795,1156.4,1155.1,0.56502167]
[1761534670743,0.15069795,1156.4,1154.8,0.64388106]
[1761534670946,0.15069795,1156.4,1154.9,0.56477239]
[1761534671146,0.15069795,1156.4,1155.0,0.56477239]
[1761534671345,0.15069795,1156.4,1155.1,0.56477239]
[1761534671550,0.15069795,1156.4,1154.8,0.64388106]
[1761534671745,0.15069795,1156.4,1154.9,0.56452693]
[1761534672047,0.15069795,1156.4,1155.0,0.56452693]
[1761534672245,0.15069795,1156.4,1155.1,0.56452693]
[1761534672451,0.15069795,1156.4,1154.8,0.64388106]
[1761534672649,0.15069795,1156.4,1154.9,0.56432765]
[1761534672849,0.15069795,1156.4,1155.0,0.56432765]
[1761534673050,0.15069795,1156.4,1155.1,0.56432765]
[1761534673248,0.15069795,1156.4,1154.8,0.64388106]
[1761534673449,0.15069795,1156.4,1154.9,0.56413932]
[1761534673648,0.15069795,1156.4,1155.0,0.56413932]
[1761534673951,0.15069795,1156.4,1155.1,0.56413932]
[1761534674149,0.15069795,1156.4,1154.7,2.00188106]
[1761534674352,0.15069795,1156.4,1154.8,0.56395973]
[1761534674550,0.15069795,1156.4,1154.9,0.56395973]
[1761534674751,0.15069795,1156.4,1155.0,0.56395973]
[1761534674951,0.15069795,1156.4,1155.1,0.56395973]
[1761534675154,0.15069795,1156.4,1155.2,0.56395973]
[1761534675356,0.15069795,1156.4,1154.7,2.00188106]
[1761534675554,0.15069795,1156.4,1154.8,0.56371717]
[1761534675754,0.15069795,1156.4,1154.9,0.56371717]
[1761534675954,0.15069795,1156.4,1155.0,0.56371717]
[1761534676250,0.15069795,1156.4,1155.1,0.56371717]
[1761534676450,0.15069795,1156.4,1154.7,2.00188106]
[1761534676451,0.15069795,1156.4,1155.2,0.56371717]
[1761534676651,0.15069795,1156.4,1155.3,0.56353261]
[1761534676854,0.15069795,1156.4,1155.4,0.56353261]
[1761534677051,0.15069795,1156.4,1155.0,0.64388106]
[1761534677254,0.15069795,1156.4,1155.1,0.56353261]
[1761534677451,0.15069795,1156.4,1155.2,0.56353261]
[1761534677656,0.15069795,1156.4,1155.3,0.56353261]
[1761534677954,0.15069795,1156.4,1155.4,0.56353261]
[1761534678157,0.15069795,1156.4,1155.0,0.64388106]
[1761534678456,0.15069795,1156.4,1155.1,0.56314244]
[1761534678756,0.15069795,1156.4,1155.2,0.56314244]
[1761534678956,0.15069795,1156.4,1155.3,0.56314244]
[1761534679156,0.15069795,1156.4,1155.4,0.56314244]
[1761534679354,0.15069795,1156.4,1155.0,0.64388106]
[1761534679553,0.15069795,1156.4,1155.1,0.56296846]
[1761534679753,0.15069795,1156.4,1155.2,0.56296846]
[1761534679956,0.15069795,1156.4,1155.3,0.56296846]
[1761534680252,0.15069795,1156.4,1155.4,0.56296846]
[1761534680457,0.15069795,1156.4,1155.0,0.64388106]
[1761534680752,0.15069795,1156.4,1155.1,0.56288165]
[1761534680954,0.15069795,1156.4,1155.2,0.56288165]
[1761534681154,0.15069795,1156.4,1155.3,0.56288165]
[1761534681359,0.15069795,1156.4,1155.4,0.56288165]
[1761534681557,0.15069795,1156.4,1155.5,0.56288165]
[1761534681761,0.15069795,1156.4,1155.6,0.56288165]
[1761534681961,0.15069795,1156.4,1155.2,0.64388106]
[1761534682162,0.15069795,1156.4,1155.3,0.56272873]
[1761534682456,0.15069795,1156.4,1155.4,0.56272873]
[1761534682662,0.15069795,1156.4,1155.5,0.56272873]
[1761534682957,0.15069795,1156.4,1155.6,0.56272873]
[1761534683162,0.15069795,1156.4,1155.6,1.016]
[1761534692269,0.15069795,1156.4,1155.7,0.56218412]
[1761534692474,0.15069795,1156.4,1155.6,1.016]
[1761534692774,0.15069795,1156.4,1155.7,0.56211384]
[1761534693073,0.15069795,1156.4,1155.6,1.016]
[1761534693273,0.15069795,1156.4,1155.7,0.56212466]
[1761534693471,0.15069795,1156.4,1155.6,1.016]
[1761534693771,0.15069795,1156.4,1155.7,0.56207538]
[1761534693971,0.15069795,1156.4,1155.6,1.016]
[1761534694172,0.15069795,1156.4,1155.7,0.56207559]
[1761534694374,0.15069795,1156.4,1155.6,1.016]
[1761534694575,0.15069795,1156.4,1155.7,0.5620522]
[1761534694872,0.15069795,1156.4,1155.6,1.016]
[1761534708681,0.15069795,1156.4,1155.7,0.56436728]
[1761534708880,0.15069795,1156.4,1155.6,1.016]
[1761534709084,0.15069795,1156.4,1155.7,0.56435279]
[1761534709282,0.15069795,1156.4,1155.6,1.016]
[1761534709482,0.15069795,1156.4,1155.7,0.5644606]
[1761534709685,0.15069795,1156.4,1155.6,1.016]
[1761534709879,0.15069795,1156.4,1155.7,0.5644606]
[1761534710085,0.15069795,1156.4,1155.6,1.016]
[1761534710282,0.15069795,1156.4,1155.7,0.56446081]
[1761534710485,0.15069795,1156.4,1155.6,1.016]
[1761534717493,0.15069795,1156.4,1155.7,0.56563147]
[1761534717694,0.15069795,1156.4,1155.6,1.016]
[1761534717892,0.15069795,1156.4,1155.7,0.56563147]
[1761534718096,0.15069795,1156.4,1155.6,1.016]
[1761534718297,0.15069795,1156.4,1155.7,0.56563083]
[1761534718497,0.15069795,1156.4,1155.6,1.016]
[1761534718798,0.15069795,1156.4,1155.7,0.56578424]
[1761534719097,0.15069795,1156.4,1155.6,1.016]
[1761534719395,0.15069795,1156.4,1155.7,0.56578424]
[1761534719599,0.15069795,1156.4,1155.6,1.016]
[1761534719799,0.15069795,1156.4,1155.7,0.56595843]
[1761534720098,0.15069795,1156.4,1155.8,0.56595843]
[1761534720395,0.15069795,1156.4,1155.6,1.016]
[1761534720594,0.15069795,1156.4,1155.7,0.56592819]
[1761534720795,0.15069795,1156.4,1155.8,0.56592819]
[1761534720992,2.1448393,1158.4,1155.6,1.016]
[1761534721196,2.1448393,1158.5,1155.7,0.56583623]
[1761534721396,0.15049657,1156.6,1155.8,0.56583623]
[1761534721600,2.1448393,1158.4,1155.9,0.56583623]
[1761534721798,2.1448393,1158.4,1155.6,1.016]
[1761534721998,0.15049592,1156.5,1155.7,0.56606101]
[1761534722199,2.1448393,1158.4,1155.8,0.56606101]
[1761534722402,0.15050341,1156.5,1155.9,0.56606101]
[1761534722701,2.1448393,1158.4,1155.6,1.016]
[1761534722997,0.15049657,1156.5,1155.7,0.56616053]
[1761534723195,0.15049657,1156.5,1155.6,1.016]
[1761534723196,0.15049657,1156.5,1155.8,0.56616053]
[1761534723399,2.1448393,1158.4,1155.9,0.56616053]
[1761534723699,0.15050959,1156.4,1155.6,1.016]
[1761534723896,2.1448393,1158.4,1155.7,0.5662455]
[1761534724096,0.15051285,1156.4,1155.8,0.5662455]
[1761534724300,0.15051285,1156.4,1155.9,0.5662455]
[1761534724496,2.1448393,1158.4,1155.5,0.64524361]
[1761534724699,0.15050634,1156.4,1155.6,0.56633814]